fUST/lending_fUST_20250813
["ID","MTS","AMOUNT","RATE_DAILY","PERIOD"]
[378926565,1755070249064,-200.0,0.00022284,15]
[378926566,1755070249074,-200.0,0.00022284,15]
[378926567,1755070249083,-200.0,0.00022284,15]
[378926568,1755070249092,-626.5781844,0.00022301,2]
[378926569,1755070249102,-364.3,0.00022338,3]
[378926570,1755070249111,-500.0,0.00022369,2]
[378926571,1755070249121,-500.0,0.00022369,2]
[378926572,1755070249131,-356.371576,0.00022396,2]
[378926573,1755070249140,-160.0,0.0002242,2]
[378926574,1755070249150,-151.0,0.00022507,7]
[378926575,1755070249159,-151.0,0.00022521,7]
[378926576,1755070249285,-400.0,0.00022603,2]
[378926577,1755070249296,-168.0,0.00022614,2]
[378926578,1755070249306,-2000.0,0.00022616,2]
[378926579,1755070249315,-500.0,0.00022643,2]
[378926580,1755070249325,-500.0,0.00022643,2]
[378926581,1755070249339,-168.0,0.00022755,2]
[378926582,1755070249348,-1500.0,0.00022768,2]
[378926583,1755070249358,-1500.0,0.00022768,2]
[378926584,1755070249368,-281.0,0.00022779,2]
[378926585,1755070249380,-972.0,0.00022859,2]
[378926586,1755070249390,-2151.0,0.00022859,2]
[378926587,1755070249400,-636.0,0.00022859,2]
[378926588,1755070249410,-408.0,0.00022859,2]
[378926589,1755070249420,-417.652,0.00022859,2]
[378926590,1755070249433,-151.0,0.00022859,7]
[378926591,1755070249443,-151.0,0.00022859,7]
[378926592,1755070249454,-151.0,0.00022859,7]
[378926593,1755070249470,-187.89059584,0.00022904,8]
[378926594,1755070249480,-500.0,0.00022917,2]
[378926595,1755070249491,-500.0,0.00022917,2]
[378926596,1755070249502,-260.0,0.00022968,2]
[378926597,1755070249513,-256.02302836,0.00022998,2]
[378926598,1755070249523,-500.0,0.00022999,5]
[378926599,1755070249533,-160.0,0.00023,2]
[378926600,1755070249542,-179.0,0.00023,7]
[378926601,1755070249551,-11694.33950616,0.00023,2]
[378926602,1755070249560,-5052.91452661,0.00023,2]
[378926603,1755070249570,-1341.10925257,0.00023,2]
[378926604,1755070249579,-758.97,0.00023,2]
[378926605,1755070249590,-151.0,0.00023011,7]
[378926606,1755070249600,-162.90863974,0.00023014,2]
[378926607,1755070249609,-168.0,0.00023014,7]
[378926608,1755070249618,-445.0,0.00023014,7]
[378926609,1755070249628,-151.0,0.00023014,7]
[378926610,1755070249637,-556.9,0.00023015,3]
[378926611,1755070249646,-364.3,0.00023017,3]
[378926612,1755070249656,-5000.0,0.00023037,2]
[378926613,1755070249665,-509.0,0.00023041,2]
[378926614,1755070249674,-626.5781844,0.00023048,2]
[378926615,1755070249684,-509.0,0.00023075,2]
[378926616,1755070249693,-246.30099175,0.00023085,2]
[378926617,1755070249703,-645.0,0.000231,2]
[378926618,1755070249712,-254.791694,0.00023105,7]
[378926619,1755070249721,-509.0,0.00023145,2]
[378926620,1755070249731,-368.205,0.0002315,2]
[378926621,1755070249741,-2500.0,0.00023164,2]
[378926622,1755070249751,-509.0,0.00023167,2]
[378926623,1755070249760,-1990.0,0.00023181,2]
[378926624,1755070249769,-509.0,0.00023188,2]
[378926625,1755070249778,-151.0,0.00023188,7]
[378926626,1755070249788,-151.0,0.00023188,7]
[378926627,1755070249798,-151.0,0.00023188,7]
[378926628,1755070249807,-500.0,0.00023191,2]
[378926629,1755070249817,-500.0,0.00023191,2]
[378926630,1755070249828,-151.0,0.00023204,7]
[378926631,1755070249840,-281.0,0.00023208,2]
[378926632,1755070249849,-1990.0,0.00023211,2]
[378926633,1755070249858,-151.0,0.00023211,7]
[378926634,1755070249867,-151.0,0.00023216,7]
[378926635,1755070249877,-151.0,0.00023216,7]
[378926636,1755070249886,-151.0,0.00023216,7]
[378926637,1755070249895,-151.0,0.00023225,7]
[378926638,1755070249905,-151.0,0.00023225,7]
[378926639,1755070249915,-321.861224,0.00023225,7]
[378926640,1755070249924,-321.861224,0.00023225,7]
[378926641,1755070249934,-151.0,0.00023225,7]
[378926642,1755070249943,-158.026185,0.00023225,7]
[378926643,1755070249953,-1990.0,0.00023225,2]
[378926644,1755070249962,-800.0,0.00023247,2]
[378926645,1755070249972,-200.0,0.0002328,7]
[378926646,1755070249982,-509.0,0.00023286,2]
[378926647,1755070249992,-400.0,0.00023288,2]
[378926648,1755070250001,-151.0,0.00023302,7]
[378926649,1755070250011,-151.0,0.00023302,7]
[378926650,1755070250020,-509.0,0.00023302,2]
[378926651,1755070250030,-806.02407646,0.00023312,2]
[378926652,1755070250039,-11175.86005996,0.00023315,2]
[378926653,1755070250049,-2000.0,0.00023316,2]
[378926654,1755070250058,-2000.0,0.00023316,2]
[378926655,1755070250067,-800.0,0.00023344,2]
[378926656,1755070250077,-800.0,0.00023393,2]
[378926657,1755070250086,-229.3,0.00023398,3]
[378926658,1755070250095,-509.0,0.00023403,2]
[378926659,1755070250104,-151.0,0.00023408,7]
[378926660,1755070250114,-151.0,0.00023408,7]
[378926661,1755070250124,-500.0,0.00023408,2]
[378926662,1755070250133,-151.0,0.00023409,7]
[378926663,1755070250142,-247.009,0.00023409,7]
[378926664,1755070250152,-151.517625,0.00023409,7]
[378926665,1755070250161,-151.517625,0.00023409,7]
[378926666,1755070250172,-162.328816,0.00023409,7]
[378926667,1755070250182,-162.328816,0.00023409,7]
[378926668,1755070250193,-151.0,0.00023409,7]
[378926669,1755070250202,-151.0,0.00023409,7]
[378926670,1755070250211,-151.0,0.00023409,7]
[378926671,1755070250221,-151.0,0.00023409,7]
[378926672,1755070250230,-152.601533,0.00023409,7]
[378926673,1755070250239,-151.919,0.00023409,7]
[378926674,1755070250248,-151.0,0.00023409,7]
[378926675,1755070250258,-151.0,0.00023409,7]
[378926676,1755070250267,-321.861224,0.00023409,7]
[378926677,1755070250277,-321.861224,0.00023409,7]
[378926678,1755070250286,-151.0,0.00023409,7]
[378926679,1755070250296,-151.0,0.00023409,7]
[378926680,1755070250305,-151.0,0.00023409,7]
[378926681,1755070250314,-151.0,0.00023409,7]
[378926682,1755070250323,-151.0,0.00023409,7]
[378926683,1755070250336,-37300.06544308,0.00023409,2]
[378926684,1755070250345,-509.0,0.00023415,2]
[378926685,1755070250355,-800.0,0.00023431,2]
[378926686,1755070250364,-800.0,0.00023435,2]
[378926687,1755070250374,-800.0,0.00023447,2]
[378926688,1755070250383,-500.0,0.00023465,2]
[378926689,1755070250392,-500.0,0.00023465,2]
[378926690,1755070250401,-502.74852012,0.00023473,2]
[378926691,1755070250412,-500.0,0.00023473,2]
[378926692,1755070250423,-500.0,0.00023473,2]
[378926693,1755070250432,-500.75995854,0.00023473,2]
[378926694,1755070250442,-500.0,0.00023473,2]
[378926695,1755070250451,-500.81348602,0.00023473,2]
[378926696,1755070250460,-500.0,0.00023473,2]
[378926697,1755070250470,-501.30889282,0.00023473,2]
[378926698,1755070250479,-500.92954421,0.00023473,2]
[378926699,1755070250489,-500.8503291,0.00023473,2]
[378926700,1755070250498,-500.0,0.00023473,2]
[378926701,1755070250507,-500.0,0.00023473,2]
[378926702,1755070250516,-500.0,0.00023473,2]
[378926703,1755070250525,-509.43701415,0.00023473,2]
[378926704,1755070250534,-501.07241622,0.00023473,2]
[378926705,1755070250543,-500.0,0.00023473,2]
[378926706,1755070250553,-500.78890042,0.00023473,2]
[378926707,1755070250562,-500.0,0.00023473,2]
[378926708,1755070250571,-500.0,0.00023473,2]
[378926709,1755070250581,-500.0,0.00023473,2]
[378926710,1755070250590,-500.0,0.00023473,2]
[378926711,1755070250599,-500.0,0.00023473,2]
[378926712,1755070250608,-500.0,0.00023473,2]
[378926713,1755070250617,-500.54007216,0.00023473,2]
[378926714,1755070250626,-500.0,0.00023473,2]
[378926715,1755070250635,-500.0,0.00023473,2]
[378926716,1755070250644,-500.0,0.00023473,2]
[378926717,1755070250654,-500.0,0.00023473,2]
[378926718,1755070250663,-500.0,0.00023473,2]
[378926719,1755070250673,-500.0,0.00023473,2]
[378926720,1755070250682,-500.0,0.00023473,2]
[378926721,1755070250691,-500.0,0.00023473,2]
[378926722,1755070250700,-500.0,0.00023473,2]
[378926723,1755070250716,-500.0,0.00023473,2]
[378926724,1755070250725,-500.0,0.00023473,2]
[378926725,1755070250734,-500.0,0.00023473,2]
[378926726,1755070250743,-151.0,0.00023473,7]
[378926727,1755070250752,-509.0,0.00023486,2]
[378926728,1755070250761,-500.0,0.00023489,2]
[378926729,1755070250770,-250.0,0.000235,10]
[378926730,1755070250780,-1000.0,0.000235,2]
[378926731,1755070250789,-1555.931171,0.000235,2]
[378926732,1755070250798,-500.0,0.00023507,2]
[378926733,1755070250807,-500.0,0.00023507,2]
[378926734,1755070250816,-500.0,0.00023507,2]
[378926735,1755070250826,-500.0,0.00023507,2]
[378926736,1755070250835,-158.51515779,0.00023507,2]
[378926737,1755070250844,-500.0,0.00023507,2]
[378926738,1755070250853,-360.0,0.00023516,2]
[378926739,1755070250862,-500.0,0.00023547,5]
[378926740,1755070250871,-509.0,0.00023577,2]
[378926741,1755070250880,-500.0,0.00023578,9]
[378926742,1755070250889,-500.0,0.00023591,9]
[378926743,1755070250899,-250.0,0.000236,10]
[378926744,1755070250908,-509.0,0.00023606,2]
[378926745,1755070250917,-151.0,0.00023607,7]
[378926746,1755070250926,-509.0,0.00023607,2]
[378926747,1755070250935,-18502.69577858,0.00023627,2]
[378926748,1755070250944,-151.0,0.00023627,2]
[378926749,1755070250953,-156.529591,0.00023627,7]
[378926750,1755070250962,-151.0,0.00023627,7]
[378926751,1755070250971,-509.0,0.00023631,2]
[378926752,1755070250980,-1700.0,0.00023659,2]
[378926753,1755070250990,-364.3,0.00023695,4]
[378926754,1755070251000,-250.0,0.000237,10]
[378926755,1755070251009,-3000.0,0.00023712,2]
[378926756,1755070251018,-509.0,0.00023724,2]
[378926757,1755070251028,-12969.34795534,0.00023734,2]
[378926758,1755070251037,-2974.05202248,0.00023736,2]
[378926759,1755070251046,-500.0,0.00023739,2]
[378926760,1755070251056,-500.0,0.00023739,2]
[378926761,1755070251065,-160.0,0.0002375,7]
[378926762,1755070251074,-1579.9489983,0.00023767,2]
[378926763,1755070251083,-4746.34124414,0.0002377,2]
[378926764,1755070251093,-12969.34795534,0.00023775,2]
[378926765,1755070251103,-1579.9489983,0.00023779,2]
[378926766,1755070251112,-157.99489983,0.00023781,2]
[378926767,1755070251121,-157.99489983,0.00023784,2]
[378926768,1755070251130,-4746.34124414,0.00023791,2]
[378926769,1755070251139,-2974.05202248,0.00023792,2]
[378926770,1755070251149,-626.5781844,0.00023794,2]
[378926771,1755070251158,-250.0,0.000238,10]
[378926772,1755070251168,-2500.0,0.00023864,2]
[378926773,1755070251178,-1012.78955178,0.00023864,2]
[378926774,1755070251187,-250.0,0.000239,10]
[378926775,1755070251197,-250.0,0.00023988,2]
[378926776,1755070251206,-151.0,0.00023989,7]
[378926777,1755070251215,-1549.67467031,0.0002399,2]
[378926778,1755070251225,-151.0,0.0002399,7]
[378926779,1755070251234,-153.789478,0.0002399,7]
[378926780,1755070251244,-161.303108,0.0002399,7]
[378926781,1755070251254,-151.0,0.0002399,7]
[378926782,1755070251263,-151.0,0.0002399,7]
[378926783,1755070251273,-22087.95193961,0.0002399,2]
[378926784,1755070251282,-152.483876,0.0002399,7]
[378926785,1755070251291,-321.861224,0.0002399,7]
[378926786,1755070251300,-321.861224,0.0002399,7]
[378926787,1755070251309,-151.0,0.0002399,7]
[378926788,1755070251318,-151.0,0.0002399,7]
[378926789,1755070251331,-1700.37799964,0.00024,2]
[378926790,1755070251341,-323.15079208,0.00024,2]
[378926791,1755070251350,-181.92102739,0.00024,7]
[378926792,1755070251360,-160.0,0.00024,7]
[378926793,1755070251370,-160.0,0.00024,10]
[378926794,1755070251380,-160.0,0.00024,7]
[378926795,1755070251390,-160.0,0.00024,10]
[378926796,1755070251400,-250.0,0.00024,10]
[378926797,1755070251409,-232.03317797,0.00024,7]
[378926798,1755070251420,-232.03317797,0.00024,10]
[378926799,1755070251429,-215.55264861,0.00024,7]
[378926800,1755070251439,-215.55264861,0.00024,3]
[378926801,1755070251448,-417.15472785,0.00024,7]
[378926802,1755070251457,-160.0,0.00024,7]
[378926803,1755070251467,-528.09767282,0.00024,7]
[378926804,1755070251476,-160.0,0.00024,7]
[378926805,1755070251587,-160.0,0.00024,10]
[378926806,1755070251597,-160.0,0.00024,7]
[378926807,1755070251607,-160.0,0.00024,10]
[378926808,1755070251616,-160.0,0.00024,7]
[378926809,1755070251625,-160.0,0.00024,10]
[378926810,1755070251634,-216.72950928,0.00024,7]
[378926811,1755070251644,-216.72950928,0.00024,10]
[378926812,1755070251653,-160.0,0.00024,7]
[378926813,1755070251662,-160.0,0.00024,10]
[378926814,1755070251672,-500.0,0.00024013,2]
[378926815,1755070251682,-500.0,0.00024013,2]
[378926816,1755070251691,-1000.0,0.00024021,2]
[378926817,1755070251700,-500.80922876,0.00024021,2]
[378926818,1755070251709,-500.0,0.00024021,2]
[378926819,1755070251718,-500.9478934,0.00024021,2]
[378926820,1755070251727,-500.0,0.00024021,2]
[378926821,1755070251736,-594.04779608,0.00024021,2]
[378926822,1755070251745,-500.0,0.00024021,2]
[378926823,1755070251755,-500.0,0.00024021,2]
[378926824,1755070251764,-1000.0,0.00024021,2]
[378926825,1755070251773,-501.88008736,0.00024021,2]
[378926826,1755070251782,-666.32151536,0.00024021,2]
[378926827,1755070251791,-500.0,0.00024021,2]
[378926828,1755070251800,-500.0,0.00024021,2]
[378926829,1755070251809,-1000.0,0.00024021,2]
[378926830,1755070251818,-500.0,0.00024021,2]
[378926831,1755070251827,-500.0,0.00024021,2]
[378926832,1755070251836,-1000.0,0.00024021,2]
[378926833,1755070251845,-500.0,0.00024021,2]
[378926834,1755070251854,-500.0,0.00024021,2]
[378926835,1755070251863,-1000.0,0.00024021,2]
[378926836,1755070251873,-500.0,0.00024021,2]
[378926837,1755070251882,-500.0,0.00024021,2]
[378926838,1755070251891,-501.01715711,0.00024021,2]
[378926839,1755070251900,-500.0,0.00024021,2]
[378926840,1755070251909,-501.74183705,0.00024021,2]
[378926841,1755070251919,-1000.0,0.00024021,2]
[378926842,1755070251928,-151.0,0.00024021,7]
[378926843,1755070251937,-11175.86005995,0.00024053,2]
[378926844,1755070251947,-645.34216857,0.00024055,2]
[378926845,1755070251956,-719.12395559,0.00024055,2]
[378926846,1755070251965,-1000.0,0.00024055,2]
[378926847,1755070251974,-1000.0,0.00024055,2]
[378926848,1755070251984,-500.0,0.00024055,2]
[378926849,1755070251993,-460.0,0.00024064,2]
[378926850,1755070252003,-500.0,0.00024095,5]
[378926851,1755070252012,-250.0,0.000241,10]
[378926852,1755070252021,-452.0,0.00024164,7]
[378926853,1755070252030,-151.551166,0.00024181,7]
[378926854,1755070252039,-250.0,0.000242,10]
[378926855,1755070252049,-151.0,0.0002426,7]
[378926856,1755070252058,-151.517625,0.0002426,7]
[378926857,1755070252068,-151.517625,0.0002426,7]
[378926858,1755070252077,-162.328816,0.0002426,7]
[378926859,1755070252087,-162.328816,0.0002426,7]
[378926860,1755070252096,-3500.0,0.0002426,2]
[378926861,1755070252105,-520.0,0.00024287,2]
[378926862,1755070252115,-500.0,0.00024287,2]
[378926863,1755070252124,-155.326097,0.00024289,2]
[378926864,1755070252133,-151.0,0.00024295,7]
[378926865,1755070252142,-843.29866057,0.000243,7]
[378926866,1755070252151,-250.0,0.000243,10]
[378926867,1755070252161,-364.3,0.00024374,4]
[378926868,1755070252172,-151.0,0.0002438,7]
[378926869,1755070252181,-151.0,0.0002438,7]
[378926870,1755070252192,-151.0,0.0002438,7]
[378926871,1755070252201,-151.0,0.0002438,7]
[378926872,1755070252210,-151.0,0.0002438,7]
[378926873,1755070252220,-151.0,0.0002438,7]
[378926874,1755070252229,-2200.0,0.0002438,2]
[378926875,1755070252239,-500.222,0.0002438,2]
[378926876,1755070252248,-335.177262,0.000244,10]
[378926877,1755070252258,-3000.0,0.00024412,2]
[378926878,1755070252268,-200.0,0.00024466,15]
[378926879,1755070252277,-200.0,0.00024466,15]
[378926880,1755070252287,-200.0,0.00024466,15]
[378926881,1755070252296,-200.0,0.00024466,15]
[378926882,1755070252305,-200.0,0.00024466,15]
[378926883,1755070252315,-200.0,0.00024466,15]
[378926884,1755070252325,-200.0,0.00024466,15]
[378926885,1755070252339,-200.0,0.00024466,15]
[378926886,1755070252350,-358.0,0.00024466,15]
[378926887,1755070252359,-659.60969914,0.000245,2]
[378926888,1755070252369,-350.0,0.00024536,2]
[378926889,1755070252379,-626.5781844,0.0002454,2]
[378926890,1755070252389,-12922.36632047,0.0002455,2]
[378926891,1755070252398,-500.0,0.00024561,2]
[378926892,1755070252408,-1500.0,0.00024568,2]
[378926893,1755070252419,-1500.0,0.00024568,2]
[378926894,1755070252428,-1500.0,0.00024568,2]
[378926895,1755070252438,-1500.0,0.00024568,2]
[378926896,1755070252448,-1500.0,0.00024568,2]
[378926897,1755070252458,-1500.0,0.00024568,2]
[378926898,1755070252467,-1500.0,0.00024603,2]
[378926899,1755070252476,-560.0,0.00024612,2]
[378926900,1755070252486,-151.0,0.00024624,7]
[378926901,1755070252497,-151.0,0.0002463,7]
[378926902,1755070252506,-151.517625,0.00024639,7]
[378926903,1755070252516,-151.517625,0.00024639,7]
[378926904,1755070252525,-162.328816,0.00024639,7]
[378926905,1755070252535,-162.328816,0.00024639,7]
[378926906,1755070252545,-151.0,0.00024639,7]
[378926907,1755070252555,-312743.54914502,0.0002464,7]
[378926951,1755071432065,-5000.0,0.00018155,2]
[378926953,1755071432075,-736.69605078,0.00018896,2]
[378926955,1755071432085,-1200.0,0.00018996,2]
[378926956,1755071432094,-1200.0,0.00018996,2]
[378926957,1755071432105,-300.0,0.00018999,2]
[378926958,1755071432115,-281.0,0.00018999,2]
[378926961,1755071432124,-300.0,0.00018999,2]
[378926962,1755071432133,-33903.35632798,0.00019,2]
[378926964,1755071432142,-487.1749787,0.00019178,2]
[378926967,1755071432152,-200.0,0.00019377,20]
[378926969,1755071432161,-200.0,0.00019377,20]
[378926990,1755071432323,-200.0,0.00019377,20]
[378926992,1755071432334,-200.0,0.00019377,20]
[378926994,1755071432344,-200.0,0.00019377,20]
[378926996,1755071432354,-200.0,0.00019377,20]
[378926998,1755071432363,-202.87249138,0.00019773,2]
[378927000,1755071432373,-203.1804032,0.00019773,2]
[378927002,1755071432383,-175.601804,0.00019863,2]
[378927004,1755071432392,-473.20504275,0.00019895,2]
[378927006,1755071432402,-500.0,0.00019895,2]
[378927008,1755071432411,-500.0,0.00019895,2]
[378927010,1755071432420,-177.9392631,0.00019895,2]
[378927012,1755071432430,-500.0,0.00019895,2]
[378927014,1755071432440,-201.39602192,0.00019895,2]
[378927016,1755071432451,-178.90581545,0.00019895,2]
[378927018,1755071432461,-202.94950893,0.00019895,2]
[378927020,1755071432470,-500.0,0.00019895,2]
[378927022,1755071432479,-500.0,0.00019895,2]
[378927024,1755071432489,-500.0,0.00019895,2]
[378927026,1755071432499,-500.0,0.00019895,2]
[378927028,1755071432508,-545.52229124,0.00019895,2]
[378927030,1755071432517,-500.0,0.00019895,2]
[378927032,1755071432527,-500.0,0.00019895,2]
[378927034,1755071432537,-500.0,0.00019895,2]
[378927036,1755071432546,-500.0,0.00019895,2]
[378927038,1755071432555,-500.0,0.00019895,2]
[378927040,1755071432565,-500.0,0.00019895,2]
[378927042,1755071432575,-500.0,0.00019895,2]
[378927044,1755071432584,-500.0,0.00019895,2]
[378927046,1755071432594,-500.0,0.00019895,2]
[378927048,1755071432604,-500.0,0.00019895,2]
[378927050,1755071432614,-500.0,0.00019895,2]
[378927052,1755071432624,-500.0,0.00019895,2]
[378927054,1755071432634,-500.0,0.00019895,2]
[378927056,1755071432644,-500.0,0.00019895,2]
[378927058,1755071432654,-500.0,0.00019895,2]
[378927060,1755071432663,-500.0,0.00019895,2]
[378927061,1755071432673,-500.0,0.00019895,2]
[378927063,1755071432683,-500.0,0.00019895,2]
[378927065,1755071432696,-500.0,0.00019895,2]
[378927067,1755071432707,-379.90263262,0.00019895,2]
[378927069,1755071432716,-500.0,0.00019895,2]
[378927071,1755071432726,-500.0,0.00019895,2]
[378927073,1755071432735,-33611.19266643,0.000199,2]
[378927075,1755071432745,-160.0,0.0002,3]
[378927077,1755071432754,-500.0,0.00020091,2]
[378927079,1755071432764,-500.0,0.00020091,2]
[378927081,1755071432774,-503.74849276,0.00020236,2]
[378927083,1755071432784,-606.07813515,0.00020236,2]
[378927085,1755071432793,-500.0,0.00020236,2]
[378927087,1755071432802,-500.0,0.00020236,2]
[378927089,1755071432811,-500.0,0.00020236,2]
[378927091,1755071432820,-501.07153285,0.0002026,2]
[378927093,1755071432830,-500.0,0.0002052,2]
[378927095,1755071432839,-500.0,0.0002052,2]
[378927097,1755071432848,-500.0,0.0002052,2]
[378927099,1755071432858,-500.0,0.00020542,2]
[378927101,1755071432868,-500.0,0.00020542,2]
[378927103,1755071432877,-500.0,0.00020542,2]
[378927105,1755071432886,-500.0,0.00020575,2]
[378927107,1755071432896,-500.0,0.00020778,2]
[378927109,1755071432905,-511.69269715,0.00020778,2]
[378927111,1755071432914,-500.0,0.00020778,2]
[378927113,1755071432924,-996.850206,0.00020784,2]
[378927115,1755071432933,-160.0,0.00020877,2]
[378927117,1755071432942,-160.0,0.00020877,2]
[378927119,1755071432953,-160.0,0.00020877,2]
[378927121,1755071432963,-528.09767282,0.00020877,2]
[378927123,1755071432972,-160.0,0.00020877,2]
[378927125,1755071432982,-843.29866057,0.00020877,2]
[378927127,1755071432991,-461.84428375,0.00020877,2]
[378927129,1755071433000,-160.0,0.00020877,2]
[378927131,1755071433010,-232.03317797,0.00020877,2]
[378927133,1755071433019,-216.72950928,0.00020877,2]
[378927134,1755071433028,-417.15472785,0.00020877,2]
[378927135,1755071433038,-12675.74622655,0.00020877,2]
[378927136,1755071433047,-160.0,0.00020877,2]
[378927138,1755071433057,-160.0,0.00020877,2]
[378927140,1755071433067,-160.0,0.00020877,2]
[378927142,1755071433077,-215.55264861,0.00020877,2]
[378927144,1755071433087,-151.0,0.00020976,2]
[378927146,1755071433097,-151.0,0.00020976,2]
[378927148,1755071433106,-1000.0,0.00021068,2]
[378927150,1755071433116,-200.0,0.00021278,20]
[378927152,1755071433125,-200.0,0.00021278,20]
[378927154,1755071433135,-200.0,0.00021278,20]
[378927156,1755071433144,-200.0,0.00021278,20]
[378927158,1755071433154,-200.0,0.00021278,20]
[378927160,1755071433164,-200.0,0.00021278,20]
[378927161,1755071433175,-200.0,0.00021278,20]
[378927162,1755071433186,-280.0,0.00021278,20]
[378927164,1755071433196,-1000.0,0.00021326,2]
[378927166,1755071433206,-463.83371397,0.00021555,2]
[378927167,1755071433216,-1500.0,0.00021616,2]
[378927168,1755071433226,-458.6,0.00021645,3]
[378927169,1755071433236,-33611.19266643,0.00021655,2]
[378927170,1755071433246,-258.06302,0.00021655,2]
[378927171,1755071433256,-192.971769,0.00021655,2]
[378927172,1755071433265,-193.116734,0.00021655,2]
[378927173,1755071433275,-151.0,0.00021655,2]
[378927174,1755071433285,-500.113186,0.00021655,2]
[378927175,1755071433294,-500.113186,0.00021655,2]
[378927176,1755071433303,-212.5,0.00021717,2]
[378927177,1755071433313,-1500.0,0.00021874,2]
[378927178,1755071433322,-500.0,0.00021917,2]
[378927179,1755071433331,-168.0,0.00022,2]
[378927180,1755071433341,-2000.0,0.00022164,2]
[378927181,1755071433351,-151.0,0.00022258,2]
[378927182,1755071433360,-151.0,0.00022258,2]
[378927183,1755071433370,-17842.522448,0.00022258,2]
[378927184,1755071433380,-193.116734,0.00022301,7]
[378927185,1755071433390,-463.83371396,0.00022301,2]
[378927186,1755071433400,-212.5,0.00022391,3]
[378927187,1755071433409,-160.0,0.000224,2]
[378927188,1755071433418,-2000.0,0.00022422,2]
[378927189,1755071433427,-500.113186,0.00022507,7]
[378927190,1755071433437,-500.113186,0.00022507,7]
[378927191,1755071433447,-2500.0,0.00022712,2]
[378927192,1755071433457,-250.0,0.00022869,2]
[378927193,1755071433466,-260.0,0.00022948,2]
[378927194,1755071433476,-2500.0,0.0002297,2]
[378927195,1755071433485,-500.0,0.00022973,2]
[378927196,1755071433495,-500.0,0.00022973,2]
[378927197,1755071433504,-500.0,0.00022973,2]
[378927198,1755071433514,-500.0,0.00022973,2]
[378927199,1755071433523,-206.09074851,0.00022973,2]
[378927200,1755071433533,-500.0,0.00022973,2]
[378927201,1755071433543,-500.0,0.00022973,2]
[378927202,1755071433553,-500.0,0.00022973,2]
[378927203,1755071433563,-473.67957326,0.00022987,2]
[378927204,1755071433572,-731.11410272,0.00022987,2]
[378927205,1755071433582,-731.11410272,0.00022987,2]
[378927206,1755071433591,-731.11410272,0.00022987,2]
[378927207,1755071433601,-731.11410272,0.00022987,2]
[378927208,1755071433610,-731.11410272,0.00022987,2]
[378927209,1755071433620,-731.11410272,0.00022987,2]
[378927210,1755071433630,-731.11410272,0.00022987,2]
[378927211,1755071433639,-731.11410272,0.00022987,2]
[378927212,1755071433649,-731.11410272,0.00022987,2]
[378927213,1755071433658,-731.11410272,0.00022987,2]
[378927214,1755071433668,-731.11410272,0.00022987,2]
[378927215,1755071433677,-731.11410272,0.00022987,2]
[378927216,1755071433687,-731.11410272,0.00022987,2]
[378927217,1755071433701,-731.11410272,0.00022987,2]
[378927218,1755071433710,-774.98094888,0.00022987,2]
[378927219,1755071433719,-774.98094888,0.00022987,2]
[378927220,1755071433729,-774.98094888,0.00022987,2]